Cogmind - Beta 15 @@@ ROGUE MODE // 2025.10.11 @ 13:47:24 Player: weras Result: Destroyed by G-47 Trooper with Particle Gun Performance ------------- Evolutions (2) 1000 Regions Visited (7) 1400 Robots Destroyed (57) 285 Value Destroyed (2716) 2716 Prototype IDs (5) 100 Alien Tech Used (0) 0 Bonus (1388) 1388 TOTAL SCORE: 6889 Bonus ------- High Alert Combat Kills 187 Follower Combat Kills 501 Entered Garrisons 200 Used RIF Installer 500 Cogmind --------- Core Integrity 0/550 Matter 124/300 Energy 160/160 System Corruption 0% Temperature Cool (67) Movement Walking (193) Ox1 Location -8/Materials Parts ------- > --- POWER (1) -------- Light Nuclear Core > --- PROPULSION (3) --- Aluminum Leg Aluminum Leg Titanium Leg > --- UTILITY (4) ------ High-capacity Storage Unit Relay Coupler [Grunt] (2) > --- WEAPON (3) ------- Light Assault Rifle Remote Datajack > --- INVENTORY (20) --- Light Angular Momentum Engine Improved Heat Sink Improved Heat Sink Makeshift Sensor Array Experimental Sensor Array Terrain Scan Processor Authchip [R/Combat] Authchip [R/Combat] Authchip [R/Combat] Authchip [R/Combat] Authchip [R/Combat] Relay Coupler [NC] (26) Relay Coupler [Sentry] (23) Peak State ------------ > --- POWER ------------ Light Angular Momentum Engine > --- PROPULSION ------- Carbon-fiber Leg VSS Leg VSS Leg > --- UTILITY ---------- Improved Heat Sink High-capacity Storage Unit Experimental Sensor Array Hardened Medium Armor Plating > --- WEAPON ----------- Light Assault Rifle High-powered Shotgun High-powered Shotgun > --- INVENTORY -------- Light Nuclear Core Light Angular Momentum Engine Aluminum Leg Aluminum Leg Aluminum Leg Improved Heat Sink Makeshift Sensor Array Terrain Scan Processor Hardened Medium Armor Plating Authchip [R/Combat] Authchip [R/Combat] Authchip [R/Combat] Authchip [R/Combat] Authchip [R/Combat] Relay Coupler [NC] Relay Coupler [NC] Relay Coupler [Grunt] Relay Coupler [Sentry] Heavy Laser Remote Datajack [Rating: 43] Favorites ----------- Power Light Angular Momentum Engine Engine Light Angular Momentum Engine Power Core Micro Nuclear Core Propulsion Compact Wheel Treads Light Treads Leg VSS Leg Wheel Compact Wheel Utility High-capacity Storage Unit Device Improved Heat Sink Storage High-capacity Storage Unit Processor Targeting Computer Hackware Makeshift Hacking Suite Protection Hardened Medium Armor Plating Weapon Light Assault Rifle Energy Gun Heavy Laser Ballistic Gun Light Assault Rifle Ballistic Cannon Battle Cannon Launcher Grenade Launcher Special Weapon Remote Datajack Build | -11 -10 -10 -10 -9 -8 -8 -8 ------- Run | Yrd Mat Min Exi Min Mat Gar Mat Slots Evolved 4 | . . . . . 4 . . Power . | . . . . . . . . Propulsion 1 | . . . . . 1 . . Utility 2 | . . . . . 2 . . Weapon 1 | . . . . . 1 . . Parts Attached 57 | 6 4 2 5 5 5 25 5 Power 8 | 1 1 . 1 2 . 2 1 Engine 5 | 1 1 . . 2 . 1 . Core 3 | . . . 1 . . 1 1 Reactor . | . . . . . . . . Propulsion 13 | 2 . . . . 3 6 2 Treads 3 | . . . . . 3 . . Leg 7 | . . . . . . 5 2 Wheel 3 | 2 . . . . . 1 . Hover . | . . . . . . . . Flight . | . . . . . . . . Utility 17 | 1 2 1 1 2 1 7 2 Device 8 | . 2 . 1 2 1 2 . Storage 3 | 1 . 1 . . . 1 . Processor 1 | . . . . . . 1 . Hackware 3 | . . . . . . 1 2 Protection 2 | . . . . . . 2 . Artifact . | . . . . . . . . Weapon 19 | 2 1 1 3 1 1 10 . Energy Gun 4 | . . . . . . 4 . Energy Cannon . | . . . . . . . . Ballistic Gun 11 | 2 . . 2 1 1 5 . Ballistic Cannon 2 | . 1 1 . . . . . Launcher 1 | . . . 1 . . . . Special Weapon 1 | . . . . . . 1 . Impact Weapon . | . . . . . . . . Slashing Weapon . | . . . . . . . . Piercing Weapon . | . . . . . . . . Special Melee Weapon . | . . . . . . . . Unidentified Prototypes 1 | . . . . 1 . . . Parts Lost 30 | . 2 1 1 3 . 15 8 Power 4 | . 1 . . 1 . 1 1 Propulsion 7 | . . 1 . . . 4 2 Utility 5 | . . . 1 1 . 1 2 Weapon 14 | . 1 . . 1 . 9 3 Highest Loss Streak 13 | . 2 1 1 1 . 13 3 To Critical Strikes 1 | . . . . . . 1 . Average Backups 12 | . 3 8 12 11 9 15 18 Power 1 | . . . 1 . 2 2 1 Propulsion 1 | . . . . 1 . 2 1 Utility 6 | . 1 3 5 4 3 9 12 Weapon 2 | . 1 2 3 3 3 . 1 Tool/Special . | . . . . . . . . Unused Backups 20 | . . . 1 4 . 5 10 Power 4 | . . . . . . 3 1 Propulsion 1 | . . . . 1 . . . Utility 12 | . . . . 1 . 2 9 Weapon 2 | . . . . 2 . . . Tool/Special 1 | . . . 1 . . . . Average Slot Usage (%) 90 | . 97 85 84 84 88 94 95 Engine 8 | . 13 14 3 13 9 7 6 Core 2 | . . . 10 . . 1 1 Treads 1 | . . . . . 25 . . Leg 9 | . . . . . . 21 26 Wheel 9 | . 26 14 14 14 . 1 . Device 11 | . 13 14 13 13 17 8 7 Storage 11 | . 14 14 14 14 9 9 9 Processor 1 | . . . . . . 3 . Hackware 1 | . . . . . . 3 6 Protection 4 | . . . . . . 10 12 Energy Gun 2 | . . . . . . 6 4 Ballistic Gun 18 | . 21 14 19 13 17 19 16 Ballistic Cannon 5 | . 6 14 8 13 . . . Peak Build Rating 43 | 6 7 8 15 20 25 43 40 Average Rating 22 | 4 6 7 12 17 23 34 35 On Entrance 14 | . 6 7 8 15 19 24 40 Naked Turns . | . . . . . . . . Heaviest Build 76 | 13 15 50 52 55 54 76 76 Greatest Support 60 | 32 32 16 16 16 60 60 44 Greatest Overweight (x) 4 | 1 . 3 3 3 . 4 2 Average Overweight (x) 1 | . . 2 2 2 . 1 1 Largest Inventory Capacity 20 | 8 8 20 20 20 20 20 20 Average Capacity 18 | 7 8 17 20 20 20 20 20 Most Carried 20 | 1 6 9 14 16 16 20 20 Average Carried 12 | . 3 8 12 11 9 15 18 Final Capacity 20 | 8 8 20 20 20 20 20 20 Final Carried 20 | 1 4 9 12 16 10 20 13 Class Distribution -------------------- 54% | Mutant 26% | Scavenger-Tank 11% | Scavenger-Gunner 4% | Scavenger-Mutant Dominant Class ---------------- Mutant | -10/Materials Mutant | -10/Mines Mutant | -10/Exiles Mutant | -9/Mines Scavenger-Skirmisher | -8/Materials Scavenger-Tank | -8/Garrison Scavenger-Tank | -8/Materials Resources | -11 -10 -10 -10 -9 -8 -8 -8 ----------- Run | Yrd Mat Min Exi Min Mat Gar Mat Matter Collected 2424 | 257 285 56 329 315 37 1087 58 Remotely . | . . . . . . . . Salvage Created 2234 | . 418 20 505 221 96 941 33 Parts 133 | . 27 5 24 17 11 44 5 Haulers Intercepted 1 | . 1 . . . . . . Recyclers Shooed . | . . . . . . . . Parts Field Recycled . | . . . . . . . . Retrieved Matter . | . . . . . . . . Parts Self-Destructed . | . . . . . . . . Prevented . | . . . . . . . . Kills | -11 -10 -10 -10 -9 -8 -8 -8 ------- Run | Yrd Mat Min Exi Min Mat Gar Mat Combat Hostiles Destroyed 52 | . 8 2 3 10 4 23 2 Guns 40 | . 4 1 3 4 4 22 2 Cannons 8 | . 4 1 . 3 . . . AOE 3 | . . . . 3 . . . Classes Destroyed 10 | . 5 1 1 1 1 1 . Tunneler 1 | . 1 . . . . . . Hauler 1 | . 1 . . . . . . Operator 1 | . 1 . . . . . . Watcher 1 | . 1 . . . . . . Swarmer 18 | . . 2 . 3 3 8 2 Grunt 28 | . 8 . 2 6 . 12 . Duelist 1 | . . . . 1 . . . Sentry 2 | . . . . . 1 1 . Specialist 1 | . . . . . . 1 . Hunter 3 | . . . 1 . . 2 . Best Kill Streak 6 | . 2 2 1 3 3 6 2 Combat Bots Only 6 | . 2 2 1 3 3 6 2 Max Kills in Single Turn 2 | . 1 1 1 2 1 1 1 Gunslinging . | . . . . . . . . Exploded 2 | . . . . 2 . . . Melee . | . . . . . . . . Uniques/NPCs Destroyed . | . . . . . . . . Combat | -11 -10 -10 -10 -9 -8 -8 -8 -------- Run | Yrd Mat Min Exi Min Mat Gar Mat Hostile Shots Fired 421 | . 43 15 . 45 32 217 69 Missed 95 | . 11 4 . 8 10 46 16 Hits 326 | . 32 11 . 37 22 171 53 Melee 4 | . . . . 4 . . . Projectile 322 | . 32 11 . 33 22 171 53 Critical Strikes 9 | . . . . 1 1 4 3 Damage Taken 4383 | . 431 85 45 510 223 2297 792 Core 754 | . 109 16 22 54 14 433 106 Absorbed by Shields . | . . . . . . . . Regen/Repaired (Parts) 59 | . 59 . . . . . . Core Remaining (%) 59 | 100 . . . 19 . . . Volleys Fired 315 | . 54 5 59 37 10 124 26 Largest 3 | . 2 2 2 2 2 3 3 Hottest 159 | . 50 50 57 57 46 159 114 Shots Fired 674 | . 107 10 112 73 20 314 38 Gun 596 | . 92 5 100 36 20 313 30 Cannon 61 | . 15 5 6 35 . . . Launcher 9 | . . . 6 2 . 1 . Special 8 | . . . . . . . 8 Kinetic 552 | . 107 10 106 71 20 211 27 Thermal 105 | . . . . . . 102 3 Explosive 9 | . . . 6 2 . 1 . Electromagnetic . | . . . . . . . . Robot Hit Streak 31 | . 9 2 31 7 6 29 5 Robot Miss Streak 5 | . 4 4 3 5 4 5 5 Penetration Max . | . . . . . . . . Secondary Targets 9 | . . . . . . 9 . Max Gunslinging Chain 1 | . . . . . . 1 . Shots Hit Robots 398 | . 64 4 82 37 12 176 23 Core Hits 166 | . 22 3 32 19 5 79 6 Critical Kills 3 | . . . 1 . . 2 . Critical Parts Destroyed 2 | . . . 1 . . 1 . Critical Strikes 10 | . . . 2 1 . 7 . Burn 4 | . . . . . . 4 . Destroy 5 | . . . 2 . . 3 . Blast 1 | . . . . 1 . . . Melee Attacks . | . . . . . . . . Impact . | . . . . . . . . Slashing . | . . . . . . . . Piercing . | . . . . . . . . Sneak Attacks . | . . . . . . . . Combat Hostiles . | . . . . . . . . Follow-up Attacks . | . . . . . . . . Damage Inflicted 5472 | . 716 51 640 867 209 2756 233 Guns 4502 | . 523 15 581 298 209 2643 233 Cannons 718 | . 193 36 59 430 . . . Explosions 252 | . . . . 139 . 113 . Melee . | . . . . . . . . Ramming . | . . . . . . . . Kinetic 4227 | . 716 51 640 728 209 1668 215 Thermal 993 | . . . . . . 975 18 Explosive 252 | . . . . 139 . 113 . Electromagnetic . | . . . . . . . . Impact . | . . . . . . . . Slashing . | . . . . . . . . Piercing . | . . . . . . . . Highest Corruption 1 | . . . 1 1 . . . Average Corruption 1 | . . . 1 1 . . . Corruption Purged . | . . . . . . . . Corruption Blocked . | . . . . . . . . Effects 8 | . . . . 8 . . . Message Errors 3 | . . . . 3 . . . Matter Fused 1 | . . . . 1 . . . Energy Discharges 2 | . . . . 2 . . . Data Loss (minor) 1 | . . . . 1 . . . Misfires 1 | . . . . 1 . . . Overload Shots . | . . . . . . . . Overflow Damage . | . . . . . . . . Projectiles . | . . . . . . . . Explosions . | . . . . . . . . Melee . | . . . . . . . . Knockbacks 13 | . 4 . . 9 . . . Impact . | . . . . . . . . Kinetic 13 | . 4 . . 9 . . . Secondary . | . . . . . . . . Self-Inflicted Damage 38 | . . . 22 . . 16 . Shots 2 | . . . 1 . . 1 . Rammed . | . . . . . . . . Targets Rammed . | . . . . . . . . Kicked . | . . . . . . . . Crushed . | . . . . . . . . Highest Temperature 288 | . 29 10 12 69 . 288 69 Average Temperature 35 | . 10 7 4 23 . 54 50 Received Heat Transfer 1119 | . 246 . . 180 54 378 261 Siege Activations . | . . . . . . . . Martial Activations . | . . . . . . . . Shielding Activations . | . . . . . . . . Robots Disrupted . | . . . . . . . . Combat Hostiles . | . . . . . . . . Robots Corrupted . | . . . . . . . . Combat Hostiles . | . . . . . . . . Parts Fried . | . . . . . . . . Impact Corruptions . | . . . . . . . . Robots Melted 1 | . . . . . . 1 . Combat Hostiles 1 | . . . . . . 1 . Parts Melted 1 | . . . . . . 1 . Heat Transferred 2368 | . . . . . . 2331 37 Parts Sabotaged . | . . . . . . . . Parts Stolen . | . . . . . . . . Parts Stripped . | . . . . . . . . Power Chain Reactions . | . . . . . . . . Alert | -11 -10 -10 -10 -9 -8 -8 -8 ------- Run | Yrd Mat Min Exi Min Mat Gar Mat Maximum Alert Level 5 | . . . . . . 5 3 Low Security (%) 50 | 100 100 100 . 100 100 10 . Level 1 5 | . . . . . . 10 . Level 2 10 | . . . . . . 19 13 Level 3 19 | . . . . . . 30 86 Level 4 9 | . . . . . . 20 . Level 5 4 | . . . . . . 9 . High Security . | . . . . . . . . Max Security . | . . . . . . . . Peak Influence 1806 | . 70 50 . 126 75 1806 885 Initial 880 | . . 6 . . 33 42 880 Average 480 | . 20 5 . 19 15 875 766 Influence Increases 3037 | . 284 50 80 345 105 1994 179 Destroy 0b10 Robot/C 1340 | . 160 40 60 200 80 680 120 Destroy 0b10 Robot/NC 55 | . 20 . 20 . . 15 . Destroy Leader 184 | . 54 10 . 50 10 30 30 Allied During Kill 69 | . . . . . . 55 14 Successful Hack 68 | . 48 . . 5 . . 15 Disable Machine 30 | . . . . 30 . . . Anti-Garrison Action 1150 | . . . . . . 1150 . Destroy Structure 51 | . 2 . . 30 . 19 . Lose Combat Pursuer 90 | . . . . 30 15 45 . Influence Decreases 2613 | . 267 67 80 257 128 253 1561 Entered New Map 1015 | . . 11 . . 55 23 926 Time Decay 870 | . 247 50 80 240 73 . 180 Lost Part 273 | . 20 6 . 17 . 150 80 Lost Ally 180 | . . . . . . 80 100 Purge Threat 275 | . . . . . . . 275 Squads Dispatched 6 | . 2 . . 1 1 . 2 Investigation 1 | . 1 . . . . . . Extermination . | . . . . . . . . Reinforcement 5 | . 1 . . 1 1 . 2 Assault . | . . . . . . . . Garrison . | . . . . . . . . Intercept . | . . . . . . . . Searches Triggered . | . . . . . . . . Construction Impeded 1 | . . . . 1 . . . Haulers Reinforced . | . . . . . . . . Active Scanning Responses . | . . . . . . . . Cargo Convoy Interrupts . | . . . . . . . . Stealth | -11 -10 -10 -10 -9 -8 -8 -8 --------- Run | Yrd Mat Min Exi Min Mat Gar Mat Distress Signals 1 | . . . . . 1 . . Communications Jammed . | . . . . . . . . Distress Signals . | . . . . . . . . Times Spotted 82 | . 14 3 . 12 7 35 11 Peak Tracking Total 7 | . 4 3 . 3 5 7 3 Tactical Retreats 6 | . . . . 2 1 3 . Traps | -11 -10 -10 -10 -9 -8 -8 -8 ------- Run | Yrd Mat Min Exi Min Mat Gar Mat Traps Triggered 7 | . . . . . . 7 . Indirectly . | . . . . . . . . Trap Hack Attempts . | . . . . . . . . Triggered . | . . . . . . . . Disarmed . | . . . . . . . . Reprogrammed . | . . . . . . . . Reused . | . . . . . . . . Traps Extracted . | . . . . . . . . Installed . | . . . . . . . . Triggered . | . . . . . . . . Machines | -11 -10 -10 -10 -9 -8 -8 -8 ---------- Run | Yrd Mat Min Exi Min Mat Gar Mat Machines Disabled 7 | . . . . 2 . 5 . Max in Single Turn 2 | . . . . 2 . 1 . Garrison Relay 5 | . . . . . . 5 . Machines Repaired . | . . . . . . . . Machines Dismantled . | . . . . . . . . Machines Sabotaged . | . . . . . . . . Overloaded Fab Kills . | . . . . . . . . Hacking | -11 -10 -10 -10 -9 -8 -8 -8 --------- Run | Yrd Mat Min Exi Min Mat Gar Mat Machines Accessed 17 | . 7 . 1 1 1 3 4 Terminals 14 | . 6 . . 1 . 3 4 Fabricators . | . . . . . . . . Repair Stations 1 | . 1 . . . . . . Recycling Units . | . . . . . . . . Scanalyzers . | . . . . . . . . Garrison Access 1 | . . . . . 1 . . Total Hacks 68 | . 32 . 5 5 2 9 15 Successful 38 | . 20 . 5 3 1 1 8 Failed 30 | . 12 . . 2 1 8 7 Catastrophic 4 | . 1 . . . . 2 1 Database Lockouts . | . . . . . . . . Manual 40 | . 23 . 1 4 . 5 7 Terminals 53 | . 24 . . 5 . 9 15 Fabricators . | . . . . . . . . Repair Stations 8 | . 8 . . . . . . Recycling Units . | . . . . . . . . Scanalyzers . | . . . . . . . . Garrison Access 2 | . . . . . 2 . . Terminal Hacks 23 | . 10 . 5 2 . 1 5 Record 6 | . . . 5 . . . 1 Robot Analysis 5 | . 5 . . . . . . Prototype ID Bank 2 | . 1 . . . . . 1 Branch Access Points 3 | . 1 . . 1 . . 1 Emergency Access Points 1 | . . . . . . 1 . Hauler Manifests 1 | . 1 . . . . . . Zone Layout 5 | . 2 . . 1 . . 2 Fabricator Hacks . | . . . . . . . . Repair Station Hacks 7 | . 7 . . . . . . Scan Component 4 | . 4 . . . . . . Repair 3 | . 3 . . . . . . Recycling Unit Hacks . | . . . . . . . . Scanalyzer . | . . . . . . . . Garrison Access Hacks 1 | . . . . . 1 . . Unlock Access 1 | . . . . . 1 . . Unauthorized Hacks 7 | . 3 . . 1 . . 3 Terminals 7 | . 3 . . 1 . . 3 Botnet 7 | . 3 . . 1 . . 3 Fabricators . | . . . . . . . . Repair Stations . | . . . . . . . . Recycling Units . | . . . . . . . . Scanalyzers . | . . . . . . . . Garrison Access . | . . . . . . . . Data Cores Recovered . | . . . . . . . . Used . | . . . . . . . . Hacking Detections 15 | . 7 . . 1 1 3 3 Full Trace Events 5 | . 3 . . . . 2 . Feedback Events . | . . . . . . . . Feedback Blocked . | . . . . . . . . Robot Schematics Acquired . | . . . . . . . . Robots Built . | . . . . . . . . Authchips . | . . . . . . . . Time . | . . . . . . . . Total Robot Build Rating . | . . . . . . . . Part Schematics Acquired . | . . . . . . . . Parts Built . | . . . . . . . . Authchips . | . . . . . . . . Time . | . . . . . . . . Total Part Build Rating . | . . . . . . . . Parts Repaired 3 | . 3 . . . . . . Time 78 | . 78 . . . . . . Parts Recycled . | . . . . . . . . Recycled Matter . | . . . . . . . . Retrieved Matter . | . . . . . . . . Retrieved Components . | . . . . . . . . Parts Scanalyzed . | . . . . . . . . Part Schematics Acquired . | . . . . . . . . Parts Damaged . | . . . . . . . . Bothacking | -11 -10 -10 -10 -9 -8 -8 -8 ------------ Run | Yrd Mat Min Exi Min Mat Gar Mat Used RIF Installer 1 | . . . . . . 1 . Robots Hacked 4 | . . . . . . . 4 Non-combat 1 | . . . . . . . 1 Combat 3 | . . . . . . . 3 Robot Hacks Applied 6 | . . . . . . . 6 purge_threat 2 | . . . . . . . 2 locate_traps 1 | . . . . . . . 1 go_dormant 1 | . . . . . . . 1 streamctrl_high 2 | . . . . . . . 2 Relay Couplers Released 17 | . . . . . . 17 . Machine Destruction 17 | . . . . . . 17 . Attached 2 | . . . . . . . 2 Fabnet Peak Effective % . | . . . . . . . . Robots Rewired 7 | . . . . . . 7 . Allies Hacked . | . . . . . . . . Hacks Repelled . | . . . . . . . . Allies | -11 -10 -10 -10 -9 -8 -8 -8 -------- Run | Yrd Mat Min Exi Min Mat Gar Mat Total Allies 10 | . . . . . . 8 2 Largest Group 5 | . . . . . . 5 3 Highest-Rated Group 127 | . . . . . . 127 45 Highest-Rated Ally 31 | . . . . . . 31 29 Total Orders 4 | . . . . . . 4 . ROAM 1 | . . . . . . 1 . FOLLOW 3 | . . . . . . 3 . Ally Attacks 105 | . . . . . . 58 47 Total Damage 1325 | . . . . . . 959 366 Kills 15 | . . . . . . 11 4 Allies Corrupted . | . . . . . . . . Allies Melted . | . . . . . . . . Intel | -11 -10 -10 -10 -9 -8 -8 -8 ------- Run | Yrd Mat Min Exi Min Mat Gar Mat Active Infowar (turns) 4389 | . 743 458 1690 1201 242 55 . Sensors 1495 | . . . . 1198 242 55 . Terrain 176 | . . . 173 3 . . . Structural 2595 | . 620 458 1517 . . . . ECM 123 | . 123 . . . . . . Robot Analysis Total 5 | . 5 . . . . . . Derelict Logs Recovered 3 | . . . . 3 . . . Drone Launches . | . . . . . . . . Drone Recoveries . | . . . . . . . . Exploration | -11 -10 -10 -10 -9 -8 -8 -8 ------------- Run | Yrd Mat Min Exi Min Mat Gar Mat Turns Passed 7810 | 54 789 458 1702 1220 242 2979 366 Spaces Moved 4197 | 45 490 304 1053 678 120 1357 150 Core 2 | 2 . . . . . . . Treads 133 | . . . . . 120 13 . Legs 1243 | . . . . . . 1093 150 Wheels 2819 | 43 490 304 1053 678 . 251 . Hover . | . . . . . . . . Flight . | . . . . . . . . Fastest Speed 50 | 50 100 100 130 130 160 135 183 Average Speed 148 | 98 100 135 144 136 160 174 189 Slowest Speed 265 | 100 100 145 145 145 160 260 265 Overloaded Moves . | . . . . . . . . Propulsion Burnouts . | . . . . . . . . Robots Hopped . | . . . . . . . . Potential Cave-ins 7 | . . . 5 . . 2 . Cave-ins Triggered 1 | . . . 1 . . . . Exploration Rate (%) 56 | 4 83 68 93 100 12 73 15 Regions Visited 7 Branch Regions 3 Pre-discovered Areas 2 | . . . 1 1 . . . Known Exits Taken 2 | . 1 . . . 1 . . Unknown Exits Taken 4 | 1 . 1 1 1 . . . Scrap Searched 3 | . . 1 . 2 . . . Spaces Dug 16 | . . . 9 7 . . . Terrain Destroyed 73 | . . . 30 39 . 4 . Melee . | . . . . . . . . Projectile 12 | . . . . 12 . . . AOE 61 | . . . 30 27 . 4 . Terrain Rammed . | . . . . . . . . Walls Destroyed . | . . . . . . . . Machines Disabled . | . . . . . . . . Actions | -11 -10 -10 -10 -9 -8 -8 -8 --------- Run | Yrd Mat Min Exi Min Mat Gar Mat Total 5205 | 51 691 340 1132 905 153 1730 203 Wait 425 | . 134 23 1 162 13 81 11 Move 4189 | 44 489 303 1052 677 119 1355 150 Hop . | . . . . . . . . Pick Up 57 | 1 6 6 5 12 1 25 1 Fast Attach 20 | 6 4 . . . . 10 . Attach 33 | . 3 . 3 3 5 13 6 Detach 5 | . . . 2 . . 3 . Swap 41 | . . 2 9 8 2 14 6 Drop 28 | . 1 1 1 6 3 13 3 Fire 315 | . 54 5 59 37 10 124 26 Melee . | . . . . . . . . Ram . | . . . . . . . . Kick . | . . . . . . . . Crush . | . . . . . . . . Escape Stasis 41 | . . . . . . 41 . Rewire 51 | . . . . . . 51 . Trap . | . . . . . . . . Miscellaneous . | . . . . . . . . Route ------- -11/Scrapyard -10/Materials (discovered 5 exits: [*Mat x3] / *Min x2) -10/Mines (discovered 2 exits: [*Mat] / *Exi) -10/Exiles (discovered 2 exits: *Min x2) -9/Mines (discovered 2 exits: *Mat x2) -8/Materials (discovered 3 exits: *Sto x2 / Gar) -8/Garrison (discovered 4 exits: *Mat x4) -8/Materials (discovered 1 exit: Sto) History --------- Turn | Location | Event 31 | -11/Scrapyard | Discovered new exit (range 13) 55 | -11/Scrapyard | Entered Materials 104 | -10/Materials | Identified exit to Mines 265 | -10/Materials | Discovered new exit (range 16) 314 | -10/Materials | Build established: Mutant 596 | -10/Materials | Repaired Structural Scanner 624 | -10/Materials | Repaired Com. Wheel 651 | -10/Materials | Repaired Com. Wheel 659 | -10/Materials | Discovered new exit (range 15) 815 | -10/Materials | Discovered new exit (range 16) 844 | -10/Materials | Entered Mines 908 | -10/Mines | A weapon hastily lodged in a ceiling crevice suddenly fell to the ground 925 | -10/Mines | Found DCF Scrap (13 items) 970 | -10/Mines | Found a hidden stash of uninstalled traps 1132 | -10/Mines | Discovered new exit (range 11) 1294 | -10/Mines | Deemed a non-threat by the Exiles lab entrance 1294 | -10/Mines | Discovered new exit (range 6) 1302 | -10/Mines | Entered Exiles 1302 | -10/Exiles | Found Exiles lab destroyed 1656 | -10/Exiles | Learned location of Zion (-7) 2309 | -10/Exiles | Discovered new exit (range 15) 2598 | -10/Exiles | Discovered new exit (range 10) 2796 | -10/Exiles | Core integrity fell below 50% 2819 | -10/Exiles | Crushed by falling debris 3004 | -10/Exiles | Entered Mines 3023 | -9/Mines | Met a Derelict bent on vengeance 3088 | -9/Mines | Found a damaged Exp. Sensor Array with a note attached 3091 | -9/Mines | Found Prototype Device 3092 | -9/Mines | Identified Exp. Sensor Array 3121 | -9/Mines | Discovered new exit (range 7) 3255 | -9/Mines | Discovered new exit (range 16) 3284 | -9/Mines | Learned Materials stockpile data 3415 | -9/Mines | Core integrity fell below 20% 4224 | -9/Mines | Entered Materials 4224 | -8/Materials | Evolved 4 slots: Propulsion x1, Utility x2, Weapon x1 4225 | -8/Materials | Identified exit to Storage 4296 | -8/Materials | Discovered exit to Storage (range 4) 4465 | -8/Materials | Identified exit to Garrison 4466 | -8/Materials | Entered Garrison 4485 | -8/Garrison | Triggered checkpoint 4569 | -8/Garrison | Core integrity fell below 50% 4602 | -8/Garrison | Lost 13 parts (1p3n1u8w) 4646 | -8/Garrison | Triggered checkpoint 4786 | -8/Garrison | Rescued a captive Derelict 4900 | -8/Garrison | Triggered checkpoint 4907 | -8/Garrison | Build established: Scavenger-Mutant 5108 | -8/Garrison | Lost 3 allies 5166 | -8/Garrison | Core integrity fell below 20% 5240 | -8/Garrison | Build established: Scavenger-Gunner 5437 | -8/Garrison | Discovered new exit (range 12) 5534 | -8/Garrison | Garrison Relay disabled 5757 | -8/Garrison | Garrison Relay disabled 5842 | -8/Garrison | Discovered new exit (range 14) 6023 | -8/Garrison | Build established: Scavenger-Tank 6032 | -8/Garrison | Garrison Relay disabled 6078 | -8/Garrison | Triggered checkpoint 6176 | -8/Garrison | Discovered new exit (range 10) 6214 | -8/Garrison | Triggered checkpoint 6236 | -8/Garrison | Triggered checkpoint 6268 | -8/Garrison | Garrison Relay disabled 6551 | -8/Garrison | Discovered new exit (range 6) 6698 | -8/Garrison | Garrison Relay disabled 7272 | -8/Garrison | Installed Relay Interface Framework 7445 | -8/Garrison | Entered Materials 7445 | -8/Materials | Accompanied by 3 allies 7730 | -8/Materials | Lost 3 allies 7783 | -8/Materials | Lost 3 parts (2n1w) 7811 | -8/Materials | Destroyed by G-47 Trooper with Particle Gun Last Messages --------------- 07784_ Soldier 3a heat spikes uncontrollably. 07784_ Soldier 3a overheating. 07787_ Soldier 3a heat damages core (-10). 07787_ K-01 Serf collects debris. 07788_ Soldier 3a overheating. 07788_ K-01 Serf destroyed. 07789_ Soldier 3a overheating. 07790_ Soldier 3a heat damages Hvy. Laser. 07790_ Soldier 3a destroyed. 07796_ Hrd. Medium Armor Plating destroyed. 07799_ Hpw. Shotgun destroyed. 07806_ R-06 Scavenger collects Lgt. Ion Engine. 07808_ Hrd. Medium Armor Plating destroyed. 07808_ Jacked G-47 Trooper... >>go_dormant Shutting down primary systems. 07809_ Critical hit (Burn: +37). 07810_ R-06 Scavenger collects Lgt. Nuclear Core. 07811_ Critical hit (Burn: +37). Map ----- +----------------------------------------------------+ | ?????????????????????????????????????????????????? | | ?????????????????????????????????????????????????? | | ?????????????????????????????????????????????????? | | ?????????????????????????????????????????????????? | | ??????????????????? ????????#+#####???????##### | | ???????????????? ???????? #???????# | | ????????????????? ???????"" #???????# | | ????????????????? ???????"" #???????# | | ?????????????????# ???????"" #???????# | | ?????????????????# ??????? #???????# | | ?????????????????# ???????"" #???????# | | ?????????????????# ####???"" #????######## | | ?????????????????# #???"" #????# # | | ???????????????### #??? #????# # | | ???????????????# ##??#######????# + | | ???????????????# ############### # | | ???????????????+ ? + # | | ???????????????# % #??############ # | | ???????????????# %###################### | | ???????????????######## # + + "T" # | | ??????????????????????#rg +[ ## # # | | ??????????????????????#g*o#= ## # # | | ????????????????????###% ########## # # | | ???????############## ! #??????# ########+## | | ?????? %=% ######## ######## | | ?????? T"@=% # # | | ????? " = % #"" # | | ????? %= #"T + | | ????? [ ####### #"" #####+ | | ???????##+#######+### ## # # ## | | ??????????????? ???####+##### + # ## """ | | ??????????????T"???????? ??# # + """ ## """ | | ???????????? ?????????""" "# # # """ ## """ | | ???????????# ??????????""" T# # # """ ## | | ???????????#????????????""" "# # # ##" | | ???????????????????????? #??? + + ! ##T | | ???????????????????????????? #?? ##### ##" | | ??????????????????????????????? ?????######## | | ??????????????????????????????##?????????????##### | | ?????????????????????????????????????????????????? | | ?????????????????????????????????????????????????? | | | | | | | | | | | | | | | | | | | +----------------------------------------------------+ Best States ------------- Heat Dissipation 45 Energy Generation 18 Energy Capacity 250 Matter Stores 300 Matter Capacity 300 Sight Range 16 Robot Scan Range 20 Terrain Scan Range 14 Terrain Scan Density 10 ECM Strength 1 Armor Coverage 450 Evasion (%) 40 Targeting Accuracy 5 Recoil Reduction 3 Offensive Hacking 11 Relay Coupler Types 2 Relay Coupler Value 43 Authchip Count 5 Item Schematics ----------------- None Robot Schematics ------------------ None Fabricated ------------ Nothing Repaired ---------- Structural Scanner | 10% | -10/Materials Com. Wheel | 16% | -10/Materials Com. Wheel | 46% | -10/Materials Alien Tech Used ----------------- None Achievements -------------- A New Friend Quantum Hacking True Hacker Challenges ------------ None Game ------ Seed ThrusterRainbowInsulator Manual? 0 Play Time 01:07:03 Cumulative 16.9 hours Start 2025.10.10 @ 19:21:21 End 2025.10.11 @ 13:47:24 Sessions 3 Manual Loads 0 Difficulty Rogue Special Mode None Game No. 20 Rogue 20 Adventurer 0 Explorer 0 Win Type - Total 0 Types 0/0/0/0/0/0/0/0/0/0 Lore% 10 Gallery% 14 Achievement% 18 Wizard Run 0 Options --------- Layout 1 ASCII 0 Keyboard 0 Movement Numpad Keybinds 0 Fullscreen 1 Font 24/Crisp Map View 50x35 Zoom Use 0% Tactical HUD 1 Map Filters NONE Filters NONE Steam 1 RUN: 5b012b22-03fe-49f1-b57f-562540e5b763